Cogmind - Beta 14 @@@ ROGUE MODE // 2025.05.02 @ 22:15:36 Player: Yeager Result: Destroyed by Y-45 Defender with Heavy Assault Rifle Performance ------------- Evolutions (1) 500 Regions Visited (2) 400 Robots Destroyed (48) 240 Value Destroyed (1344) 1344 Prototype IDs (8) 160 Alien Tech Used (0) 0 Bonus (141) 141 TOTAL SCORE: 2785 Bonus ------- High Alert Combat Kills 141 Cogmind --------- Core Integrity 0/400 Matter 292/300 Energy 460/460 System Corruption 1% Temperature Cool (9) Movement Treading (160) Location -9/Materials Parts ------- > --- POWER (2) -------- Heavy Ion Engine Heavy Ion Engine > --- PROPULSION (2) --- Improved Treads Improved Treads > --- UTILITY (3) ------ Medium Storage Unit Melee Analysis Suite Core Shielding > --- WEAPON (2) ------- Katana > --- INVENTORY (10) --- Cooled Ion Engine Light Treads Improved Treads Cooling System Weight Redist. System EM Pulse Gun Improved Medium Laser Advanced Beam Rifle Mini Grenade Launcher Peak State ------------ > --- POWER ------------ Heavy Ion Engine Heavy Ion Engine > --- PROPULSION ------- Improved Treads Improved Treads > --- UTILITY ---------- Medium Storage Unit Melee Analysis Suite Core Shielding > --- WEAPON ----------- Advanced Beam Rifle Advanced Beam Rifle > --- INVENTORY -------- Cooled Ion Engine Light Treads Improved Treads Improved Treads Cooling System Weight Redist. System EM Pulse Gun Improved Medium Laser Mini Grenade Launcher Katana [Rating: 25] Favorites ----------- Power Heavy Ion Engine Engine Heavy Ion Engine Propulsion Improved Treads Treads Improved Treads Wheel Compact Wheel Utility Heat Sink Device Heat Sink Storage Small Storage Unit Processor Melee Analysis Suite Protection Core Shielding Weapon Improved EM Shotgun Energy Gun Improved EM Shotgun Energy Cannon Beam Cannon Ballistic Gun Assault Rifle Ballistic Cannon Improved Light Cannon Launcher Mini Grenade Launcher Slashing Weapon Katana Build | -11 -10 -9 ------- Run | Yrd Mat Mat Slots Evolved 2 | . . 2 Power 1 | . . 1 Propulsion . | . . . Utility 1 | . . 1 Weapon . | . . . Parts Attached 55 | 6 6 43 Power 7 | 1 1 5 Engine 7 | 1 1 5 Core . | . . . Reactor . | . . . Propulsion 10 | 2 2 6 Treads 6 | . . 6 Leg . | . . . Wheel 4 | 2 2 . Hover . | . . . Flight . | . . . Utility 17 | 1 1 15 Device 5 | . . 5 Storage 4 | 1 . 3 Processor 2 | . . 2 Hackware . | . . . Protection 6 | . 1 5 Artifact . | . . . Weapon 21 | 2 2 17 Energy Gun 14 | 1 1 12 Energy Cannon 1 | . 1 . Ballistic Gun 2 | 1 . 1 Ballistic Cannon 1 | . . 1 Launcher 1 | . . 1 Special Weapon . | . . . Impact Weapon . | . . . Slashing Weapon 2 | . . 2 Piercing Weapon . | . . . Special Melee Weapon . | . . . Unidentified Prototypes 1 | . . 1 Parts Lost 11 | . . 11 Power 1 | . . 1 Propulsion 3 | . . 3 Utility 4 | . . 4 Weapon 3 | . . 3 Highest Loss Streak 2 | . . 2 To Critical Strikes . | . . . Average Slot Usage (%) 98 | . 99 98 Engine 20 | . 14 21 Treads 18 | . . 20 Wheel 3 | . 28 . Device 9 | . . 10 Storage 11 | . 14 11 Processor 4 | . . 5 Protection 6 | . 13 5 Energy Gun 14 | . 14 14 Energy Cannon 2 | . 6 2 Ballistic Gun 1 | . 7 . Ballistic Cannon 1 | . . 1 Slashing Weapon 2 | . . 2 Peak Build Rating 25 | 6 7 25 Average Rating 16 | 5 6 18 On Entrance 4 | . 6 7 Naked Turns . | . . . Heaviest Build 101 | 11 15 101 Greatest Support 52 | 20 32 52 Greatest Overweight (x) 3 | 3 . 2 Average Overweight (x) . | 1 . . Largest Inventory Capacity 25 | 8 8 25 Average Capacity 8 | 7 8 8 Most Carried 10 | 6 7 10 Average Carried 7 | 3 6 7 Final Capacity 10 | 8 8 10 Final Carried 9 | 6 6 9 Class Distribution -------------------- 97% | Mutant Dominant Class ---------------- Mutant | -10/Materials Mutant | -9/Materials Resources | -11 -10 -9 ----------- Run | Yrd Mat Mat Matter Collected 893 | 227 123 543 Remotely . | . . . Salvage Created 1648 | . 136 1512 Parts 102 | . 9 93 Haulers Intercepted 3 | . . 3 Recyclers Shooed 1 | . . 1 Parts Field Recycled . | . . . Retrieved Matter . | . . . Parts Self-Destructed . | . . . Prevented . | . . . Kills | -11 -10 -9 ------- Run | Yrd Mat Mat Combat Hostiles Destroyed 39 | . 5 34 Melee 3 | . . 3 Guns 18 | . 2 16 Cannons 13 | . 3 10 AOE 5 | . . 5 Classes Destroyed 7 | . 2 5 Hauler 3 | . . 3 Recycler 2 | . . 2 Watcher 4 | . . 4 Swarmer 9 | . 3 6 Grunt 20 | . 2 18 Duelist 3 | . . 3 Sentry 7 | . . 7 Best Kill Streak 5 | . 2 5 Combat Bots Only 5 | . 2 5 Max Kills in Single Turn 2 | . 1 2 Gunslinging . | . . . Exploded 1 | . . 1 Melee 1 | . . 1 Uniques/NPCs Destroyed . | . . . Combat | -11 -10 -9 -------- Run | Yrd Mat Mat Hostile Shots Fired 178 | . 28 150 Missed 40 | . 7 33 Damage Taken 2233 | . 264 1969 Core 493 | . 92 401 Absorbed by Shields . | . . . Redirected to Shielding 22 | . . 22 Ignored by Resistances 21 | . . 21 Regen/Repaired (Parts) 11 | . . 11 Core Remaining (%) 81 | 100 63 . Volleys Fired 103 | . 24 79 Largest 2 | . 2 2 Hottest 122 | . 60 122 Shots Fired 170 | . 34 136 Gun 110 | . 22 88 Cannon 53 | . 12 41 Launcher 7 | . . 7 Special . | . . . Kinetic 30 | . 10 20 Thermal 85 | . 24 61 Explosive 7 | . . 7 Electromagnetic 48 | . . 48 Robot Hit Streak 17 | . 11 17 Robot Miss Streak 7 | . 7 4 Penetration Max . | . . . Secondary Targets 2 | . . 2 Max Gunslinging Chain 1 | . . 1 Shots Hit Robots 121 | . 19 102 Core Hits 79 | . 9 70 Critical Kills . | . . . Critical Parts Destroyed . | . . . Critical Strikes 4 | . . 4 Burn 3 | . . 3 Blast 1 | . . 1 Melee Attacks 13 | . . 13 Impact . | . . . Slashing 13 | . . 13 Piercing . | . . . Sneak Attacks 3 | . . 3 Combat Hostiles . | . . . Follow-up Attacks . | . . . Damage Inflicted 2703 | . 244 2459 Guns 1166 | . 157 1009 Cannons 613 | . 87 526 Explosions 555 | . . 555 Melee 344 | . . 344 Ramming 25 | . . 25 Kinetic 323 | . 92 231 Thermal 1143 | . 152 991 Explosive 311 | . . 311 Electromagnetic 557 | . . 557 Impact . | . . . Slashing 344 | . . 344 Piercing . | . . . Highest Corruption 1 | . . 1 Average Corruption 1 | . . 1 Corruption Purged . | . . . Corruption Blocked . | . . . Effects 3 | . . 3 Message Errors 1 | . . 1 Matter Fused 2 | . . 2 Overload Shots . | . . . Overflow Damage 37 | . . 37 Projectiles . | . . . Explosions 9 | . . 9 Melee 28 | . . 28 Knockbacks 1 | . . 1 Impact . | . . . Kinetic 1 | . . 1 Secondary . | . . . Self-Inflicted Damage 133 | . . 133 Shots 4 | . . 4 Rammed 5 | . . 5 Targets Rammed 5 | . . 5 Kicked . | . . . Crushed . | . . . Highest Temperature 536 | . 234 536 Average Temperature 124 | . 85 136 Received Heat Transfer 684 | . 63 621 Effects 10 | . . 10 Shutdowns 3 | . . 3 Energy Bleed 3 | . . 3 Interference 2 | . . 2 Damage (minor) 1 | . . 1 Damage (core) 1 | . . 1 Siege Activations . | . . . Robots Corrupted . | . . . Combat Hostiles . | . . . Parts Fried 1 | . . 1 Impact Corruptions . | . . . Robots Melted . | . . . Combat Hostiles . | . . . Parts Melted 1 | . . 1 Heat Transferred 2522 | . 335 2187 Parts Sabotaged . | . . . Parts Stolen . | . . . Parts Stripped . | . . . Power Chain Reactions 4 | . . 4 Alert | -11 -10 -9 ------- Run | Yrd Mat Mat Peak Influence 641 | . 210 641 Initial 88 | . . 88 Average 386 | . 86 435 Maximum Alert Level 2 | . 1 2 Low Security (%) 21 | 100 97 10 Level 1 22 | . 2 25 Level 2 56 | . . 64 Level 3 . | . . . Level 4 . | . . . Level 5 . | . . . High Security . | . . . Max Security . | . . . Squads Dispatched 5 | . 1 4 Investigation 1 | . . 1 Extermination . | . . . Reinforcement 3 | . 1 2 Assault 1 | . . 1 Garrison . | . . . Intercept . | . . . Searches Triggered . | . . . Construction Impeded . | . . . Haulers Reinforced . | . . . Active Scanning Responses . | . . . Cargo Convoy Interrupts . | . . . Stealth | -11 -10 -9 --------- Run | Yrd Mat Mat Distress Signals 5 | . 3 2 Communications Jammed . | . . . Distress Signals . | . . . Times Spotted 63 | . 11 52 Peak Tracking Total 7 | . 4 7 Tactical Retreats 3 | . 1 2 Traps | -11 -10 -9 ------- Run | Yrd Mat Mat Traps Triggered 2 | . 1 1 Indirectly . | . . . Trap Hack Attempts . | . . . Triggered . | . . . Disarmed . | . . . Reprogrammed . | . . . Reused . | . . . Traps Extracted . | . . . Installed . | . . . Triggered . | . . . Machines | -11 -10 -9 ---------- Run | Yrd Mat Mat Machines Disabled 1 | . . 1 Max in Single Turn 1 | . . 1 Machines Repaired . | . . . Machines Dismantled . | . . . Machines Sabotaged . | . . . Overloaded Fab Kills . | . . . Hacking | -11 -10 -9 --------- Run | Yrd Mat Mat Machines Accessed 9 | . . 9 Terminals 7 | . . 7 Fabricators . | . . . Repair Stations 1 | . . 1 Recycling Units . | . . . Scanalyzers 1 | . . 1 Garrison Access . | . . . Total Hacks 22 | . . 22 Successful 15 | . . 15 Failed 7 | . . 7 Catastrophic 1 | . . 1 Database Lockouts . | . . . Manual 3 | . . 3 Terminals 19 | . . 19 Fabricators . | . . . Repair Stations 2 | . . 2 Recycling Units . | . . . Scanalyzers 1 | . . 1 Garrison Access . | . . . Terminal Hacks 12 | . . 12 Record 2 | . . 2 Prototype ID Bank 4 | . . 4 Alert Level 2 | . . 2 Locate Traps 2 | . . 2 Dispatch Records 1 | . . 1 Zone Layout 1 | . . 1 Fabricator Hacks . | . . . Repair Station Hacks 2 | . . 2 Scan Component 1 | . . 1 Repair 1 | . . 1 Recycling Unit Hacks . | . . . Scanalyzer 1 | . . 1 Insert Component 1 | . . 1 Garrison Access Hacks . | . . . Unauthorized Hacks . | . . . Terminals . | . . . Fabricators . | . . . Repair Stations . | . . . Recycling Units . | . . . Scanalyzers . | . . . Garrison Access . | . . . Data Cores Recovered . | . . . Used . | . . . Hacking Detections 4 | . . 4 Full Trace Events 2 | . . 2 Feedback Events . | . . . Feedback Blocked . | . . . Robot Schematics Acquired . | . . . Robots Built . | . . . Authchips . | . . . Time . | . . . Total Robot Build Rating . | . . . Part Schematics Acquired . | . . . Parts Built . | . . . Authchips . | . . . Time . | . . . Total Part Build Rating . | . . . Parts Repaired 1 | . . 1 Time 53 | . . 53 Parts Recycled . | . . . Recycled Matter . | . . . Retrieved Matter . | . . . Retrieved Components . | . . . Parts Scanalyzed . | . . . Part Schematics Acquired . | . . . Parts Damaged . | . . . Bothacking | -11 -10 -9 ------------ Run | Yrd Mat Mat Used RIF Installer . | . . . Robots Hacked . | . . . Non-combat . | . . . Combat . | . . . Robot Hacks Applied . | . . . Relay Couplers Released . | . . . Fabnet Peak Effective % . | . . . Robots Rewired . | . . . Allies Hacked . | . . . Hacks Repelled . | . . . Allies | -11 -10 -9 -------- Run | Yrd Mat Mat Total Allies . | . . . Largest Group . | . . . Highest-Rated Group . | . . . Highest-Rated Ally . | . . . Total Orders . | . . . Ally Attacks . | . . . Total Damage . | . . . Kills . | . . . Allies Corrupted . | . . . Allies Melted . | . . . Intel | -11 -10 -9 ------- Run | Yrd Mat Mat Robot Analysis Total . | . . . Derelict Logs Recovered . | . . . Drone Launches . | . . . Drone Recoveries . | . . . Exploration | -11 -10 -9 ------------- Run | Yrd Mat Mat Turns Passed 2448 | 78 243 2127 Spaces Moved 1225 | 45 141 1039 Core 32 | 32 . . Treads 958 | . . 958 Legs . | . . . Wheels 235 | 13 141 81 Hover . | . . . Flight . | . . . Fastest Speed 50 | 50 80 100 Average Speed 148 | 140 98 155 Slowest Speed 320 | 200 100 320 Overloaded Moves . | . . . Propulsion Burnouts . | . . . Robots Hopped . | . . . Cave-ins Triggered . | . . . Exploration Rate (%) 41 | 4 33 86 Regions Visited 2 Branch Regions . Pre-discovered Areas . | . . . Known Exits Taken . | . . . Unknown Exits Taken 2 | 1 1 . Scrap Searched . | . . . Spaces Dug . | . . . Terrain Destroyed 58 | . . 58 Melee . | . . . Projectile 3 | . . 3 AOE 55 | . . 55 Terrain Rammed . | . . . Walls Destroyed . | . . . Machines Disabled . | . . . Actions | -11 -10 -9 --------- Run | Yrd Mat Mat Total 1657 | 56 211 1390 Wait 180 | . 35 145 Move 1223 | 44 140 1039 Hop . | . . . Pick Up 38 | 6 1 31 Fast Attach 29 | 6 5 18 Attach 11 | . . 11 Detach 4 | . . 4 Swap 15 | . 1 14 Drop 36 | . 5 31 Fire 103 | . 24 79 Melee 13 | . . 13 Ram . | . . . Kick . | . . . Crush 5 | . . 5 Escape Stasis . | . . . Rewire . | . . . Trap . | . . . Miscellaneous . | . . . Route ------- -11/Scrapyard -10/Materials -9/Materials (discovered 2 exits: [*Mat] / [*Min]) History --------- Turn | Location | Event 25 | -11/Scrapyard | Discovered new exit (range 14) 79 | -11/Scrapyard | Entered Materials 307 | -10/Materials | Discovered new exit (range 16) 318 | -10/Materials | Build established: Mutant 322 | -10/Materials | Entered another Materials area 322 | -9/Materials | Evolved 2 slots: Power x1, Utility x1 609 | -9/Materials | Discovered new exit (range 16) 1147 | -9/Materials | Core integrity fell below 50% 1756 | -9/Materials | Repaired Corrupted Katana 2242 | -9/Materials | Discovered new exit (range 12) 2322 | -9/Materials | First assault squad dispatched 2403 | -9/Materials | Core integrity fell below 20% 2449 | -9/Materials | Destroyed by Y-45 Defender with Heavy Assault Rifle Last Messages --------------- 02396_ G-47 Trooper unfolds itself. 02396_ L-31 Rogue unfolds itself. 02396_ G-34 Mercenary unfolds itself. 02396_ I-25 Savior unfolds itself. 02407_ Adv. Beam Rifle severed. 02409_ PNBKLUK4&PTXZ0Y:VE,IS2QI/H| 02411_ L-31 Rogue destroyed. 02413_ R-06 Scavenger collects Adv. Beam Rifle. 02414_ Sneak attack on R-06 Scavenger. 02414_ Destroyed Com. Wheel. 02414_ R-06 Scavenger destroyed. 02416_ Acquired 116 matter. 02421_ Sneak attack on A-02 Transporter. 02429_ K-01 Serf cleans the Electrolysis Chamber. 02436_ Imp. Treads destroyed. 02444_ G-34 Mercenary destroyed. 02445_ Acquired 10 matter. 02448_ System corrupted: Matter fused (-9). 02448_ Acquired 1 matter. Map ----- +----------------------------------------------------+ | | | | | | | | | | | ?????????????????????????????????????????????????? | | ?????????????????????????????????????????????????? | | ?????????????????????????????????????????????????? | | ?????????????????????????????????????????????????? | | ?????????????????????????????????????????????????? | | ????????????????????????########?????????????????? | | ????????????????????????# #?????????????????? | | ????????????????????????# "" #?????????????????? | | ##########?????##########! ""S #?????????????????? | | #?????# # "" #?########????????? | | """"" #?????# # #?# #????????? | | """"" #?????# # #?# """ ####?##??? | | """"" #?????# """ #+#+###### ""R" # # #??? | | #?????#""""" + m + "" " # # #??? | | #?????#""""" # ## + #??? | | [ #?????#""""" # #### ## = # # ##??? | | == #?????# """ # #??# ######### ####### | | ##########?????# # #??# # | | ???????????????####+#####=#??# # | | #?????????????????? #???#Y#??# + | | ###################^##??#@#??###### # | | ####/######### # | | ## %%!= # != # | | !/ ## [ """ + != # | | ########### !/ = ## """ # # | | #?????????# // # """ # ###### | | ??????????# ## "Y" # ####+######## | | ???######## ## """ + ## | | ???# ## # ## | | ???#= #########+#### ## | | ???# =% # ## ### # | | ???##!###########+####""" / # | | ###?#=##???????# T ##""" # T + | | # ######???# ##""" # ### # | | #%# ###?# ##""" # ####+############## | | "" #%##""###### ##""" # # ! #???????? | | "" #%# | # ## # # #???????? | | "" # # # ##""" # # """"""" #???????? | | #%#= # ##""" # # """"""" #???????? | | # #[ # ##""" # # """"""" #???????? | | +#### # % # #??"" # # """"""" #???????? | | # ######???" # # """"""??#???????? | | # #??????? # #?????????????????? | | %+% [ ##???????##### #?????????????????? | | ###% # [ ##???######### #?????????????????? | +----------------------------------------------------+ Best States ------------- Heat Dissipation 48 Energy Generation 23 Energy Capacity 460 Matter Stores 300 Matter Capacity 300 Sight Range 16 Terrain Scan Density 10 Additional Mass Support 6 Armor Coverage 150 Resistance: KI 20 Core Shielding 20 Evasion (%) 50 Targeting Accuracy 5 Melee Accuracy 5 Recoil Reduction 2 Item Schematics ----------------- None Robot Schematics ------------------ None Fabricated ------------ Nothing Alien Tech Used ----------------- None Achievements -------------- None Challenges ------------ None Game ------ Seed MicrowarpSmallCalibrator Manual? 0 Play Time 00:47:13 Cumulative 23.8 hours Start 2025.02.25 @ 17:00:31 End 2025.05.02 @ 22:15:36 Sessions 3 Manual Loads 0 Difficulty Rogue Special Mode None Game No. 35 Rogue 35 Adventurer 0 Explorer 0 Win Type - Total 0 Types 0/0/0/0/0/0/0/0/0 Lore% 10 Gallery% 28 Achievement% 22 Wizard Run 0 Options --------- Layout 1 ASCII 0 Keyboard 0 Movement Numpad Keybinds 0 Fullscreen 1 Font 24/Smallcaps Map View 50x35 Zoom Use 0% Tactical HUD 1 Map Filters NONE Filters NONE Steam 1 RUN: 7a634472-a9c8-4304-919a-94db5e4c75da